fUSD/lending_fUSD_20251014
["ID","MTS","AMOUNT","RATE_DAILY","PERIOD"]
[391295706,1760473833390,-454.9928359,0.00014999,2]
[391295707,1760473833399,-500.0,0.00014999,2]
[391295708,1760473833409,-500.0,0.00014999,2]
[391295709,1760473833418,-500.0,0.00014999,2]
[391295710,1760473833427,-500.0,0.00014999,2]
[391295711,1760473833436,-500.0,0.00014999,2]
[391295712,1760473833445,-500.0,0.00014999,2]
[391295713,1760473833454,-500.0,0.00014999,2]
[391295714,1760473833463,-500.0,0.00014999,2]
[391295715,1760473833472,-500.0,0.00014999,2]
[391295716,1760473833481,-500.0,0.00014999,2]
[391295717,1760473833491,-21939.6082765,0.00015,2]
[391295718,1760473833504,-36126.4181982,0.00015,2]
[391295719,1760473833514,-8659.67657163,0.00015,2]
[391295720,1760473833532,-103343.84477525,0.00015,2]
[391295721,1760473833542,-200.93,0.00015069,2]
[391295722,1760473833551,-1202.68,0.00015084,2]
[391295723,1760473833560,-666.0,0.00015436,3]
[391295724,1760473833569,-255.0,0.00015468,2]
[391295725,1760473833578,-1600.0,0.00015486,2]
[391295726,1760473833587,-1202.68,0.00015492,2]
[391295727,1760473833596,-694.95,0.00015541,2]
[391295728,1760473833606,-542.73,0.00015541,2]
[391295729,1760473833615,-474.58,0.00015541,2]
[391295730,1760473833624,-474.58,0.00015541,2]
[391295731,1760473833633,-980.08,0.00015541,2]
[391295732,1760473833643,-168.12,0.00015678,2]
[391295733,1760473833652,-175.87,0.00015678,2]
[391295734,1760473833661,-546.46,0.00015678,2]
[391295735,1760473833670,-167.92,0.00015678,2]
[391295736,1760473833679,-150.0,0.00015678,2]
[391295737,1760473833688,-325.3,0.00015678,2]
[391295738,1760473833698,-150.0,0.00015678,2]
[391295739,1760473833707,-302.24,0.00015678,2]
[391295740,1760473833716,-420.0,0.00015715,2]
[391295741,1760473833725,-287.0,0.00015715,2]
[391295742,1760473833735,-151.0,0.00015721,2]
[391295743,1760473833744,-264.4478428,0.00015721,2]
[391295744,1760473833753,-151.0,0.00015721,2]
[391295745,1760473833762,-151.0,0.00015721,2]
[391295746,1760473833771,-151.0,0.00015721,2]
[391295747,1760473833780,-151.0,0.00015721,2]
[391295748,1760473833789,-151.0,0.00015721,2]
[391295749,1760473833798,-151.0,0.00015721,2]
[391295750,1760473833807,-200.0,0.00015721,2]
[391295751,1760473833816,-151.0,0.00015721,2]
[391295752,1760473833826,-151.0,0.00015721,2]
[391295753,1760473833835,-151.0,0.00015721,2]
[391295754,1760473833844,-500.0,0.00015721,2]
[391295755,1760473833854,-151.0,0.00015721,2]
[391295756,1760473833863,-500.0,0.00015721,2]
[391295757,1760473833872,-151.0,0.00015721,2]
[391295758,1760473833881,-500.0,0.00015721,2]
[391295759,1760473833891,-151.0,0.00015721,2]
[391295760,1760473833900,-500.0,0.00015721,2]
[391295761,1760473833910,-151.0,0.00015721,2]
[391295762,1760473833919,-151.0,0.00015721,2]
[391295763,1760473833928,-500.0,0.00015721,2]
[391295764,1760473833937,-151.0,0.00015721,2]
[391295765,1760473833946,-151.0,0.00015721,2]
[391295766,1760473833955,-500.0,0.00015721,2]
[391295767,1760473833964,-151.0,0.00015721,2]
[391295768,1760473833973,-500.0,0.00015721,2]
[391295769,1760473833982,-151.0,0.00015721,2]
[391295770,1760473833991,-226.31638113,0.00015721,2]
[391295771,1760473834000,-200.0,0.00015721,2]
[391295772,1760473834009,-337.32838914,0.00015721,2]
[391295773,1760473834019,-151.0,0.00015721,2]
[391295774,1760473834028,-151.0,0.00015721,2]
[391295775,1760473834037,-151.0,0.00015721,2]
[391295776,1760473834047,-151.0,0.00015721,2]
[391295777,1760473834056,-288.12962481,0.00015721,2]
[391295778,1760473834066,-200.0,0.00015721,2]
[391295779,1760473834075,-322.6107,0.0001573,2]
[391295780,1760473834084,-326.60246086,0.0001573,2]
[391295781,1760473834094,-721.12765535,0.0001573,2]
[391295782,1760473834103,-151.0,0.0001573,2]
[391295783,1760473834112,-2000.0,0.0001573,2]
[391295784,1760473834122,-7369.00142329,0.0001573,2]
[391295785,1760473834133,-2000.0,0.0001573,2]
[391295786,1760473834143,-154.25226641,0.0001573,2]
[391295787,1760473834153,-2000.0,0.0001573,2]
[391295788,1760473834163,-500.0,0.0001573,2]
[391295789,1760473834172,-500.0,0.0001573,2]
[391295790,1760473834181,-500.0,0.0001573,2]
[391295791,1760473834190,-500.0,0.0001573,2]
[391295792,1760473834200,-500.0,0.0001573,2]
[391295793,1760473834210,-180.94993147,0.0001573,2]
[391295794,1760473834219,-500.0,0.0001573,2]
[391295795,1760473834228,-500.0,0.0001573,2]
[391295796,1760473834238,-500.0,0.0001573,2]
[391295797,1760473834249,-500.0,0.0001573,2]
[391295798,1760473834258,-500.0,0.0001573,2]
[391295799,1760473834268,-233.06346285,0.0001573,2]
[391295800,1760473834277,-2000.0,0.0001573,2]
[391295801,1760473834286,-2000.0,0.0001573,2]
[391295802,1760473834296,-1205.51726934,0.0001573,2]
[391295803,1760473834305,-2000.0,0.0001573,2]
[391295804,1760473834315,-2000.0,0.0001573,2]
[391295805,1760473834328,-2000.0,0.0001573,2]
[391295806,1760473834337,-2000.0,0.0001573,2]
[391295807,1760473834347,-2000.0,0.0001573,2]
[391295808,1760473834356,-1000.0,0.0001573,2]
[391295809,1760473834366,-2000.0,0.0001573,2]
[391295810,1760473834375,-1000.0,0.0001573,2]
[391295811,1760473834383,-2000.0,0.0001573,2]
[391295812,1760473834394,-1000.0,0.0001573,2]
[391295813,1760473834406,-2000.0,0.0001573,2]
[391295814,1760473834415,-862.16298795,0.0001573,2]
[391295815,1760473834435,-137.83701205,0.0001573,2]
[391295816,1760473834444,-2000.0,0.0001573,2]
[391295817,1760473834452,-1000.0,0.0001573,2]
[391295818,1760473834461,-2000.0,0.0001573,2]
[391295819,1760473834470,-277.35679052,0.0001573,2]
[391295820,1760473834480,-1000.0,0.0001573,2]
[391295821,1760473834489,-182.84743364,0.0001573,2]
[391295822,1760473834498,-2000.0,0.0001573,2]
[391295823,1760473834507,-1000.0,0.0001573,2]
[391295824,1760473834516,-1000.0,0.0001573,2]
[391295825,1760473834525,-1000.0,0.0001573,2]
[391295826,1760473834534,-1034.14620718,0.0001573,2]
[391295827,1760473834543,-500.0,0.0001573,2]
[391295828,1760473834553,-513.02239055,0.0001573,2]
[391295829,1760473834562,-250.0,0.0001573,2]
[391295830,1760473834571,-250.0,0.0001573,2]
[391295831,1760473834580,-250.0,0.0001573,2]
[391295832,1760473834590,-250.0,0.0001573,2]
[391295833,1760473834599,-250.0,0.0001573,2]
[391295834,1760473834609,-250.0,0.0001573,2]
[391295835,1760473834618,-250.0,0.0001573,2]
[391295836,1760473834627,-250.0,0.0001573,2]
[391295837,1760473834636,-250.0,0.0001573,2]
[391295838,1760473834645,-250.0,0.0001573,2]
[391295839,1760473834655,-250.0,0.0001573,2]
[391295840,1760473834664,-1680.0,0.00015784,2]
[391295841,1760473834673,-175.97,0.00015878,2]
[391295842,1760473834682,-168.17,0.00015878,2]
[391295843,1760473834691,-413.45,0.00015878,2]
[391295844,1760473834700,-150.0,0.00015878,2]
[391295845,1760473834709,-175.97,0.00015878,2]
[391295846,1760473834718,-546.46,0.00015878,2]
[391295847,1760473834727,-175.57,0.00015878,2]
[391295848,1760473834736,-546.46,0.00015878,2]
[391295849,1760473834745,-168.17,0.00015878,2]
[391295850,1760473834754,-826.68,0.00015878,2]
[391295851,1760473834763,-261.01,0.00015978,2]
[391295852,1760473834772,-175.97,0.00015978,2]
[391295853,1760473834781,-63.6462263,0.00015978,2]
[391295854,1760473834793,-482.8137737,0.00015978,2]
[391295855,1760473834802,-150.72,0.00015978,2]
[391295856,1760473834811,-300.0,0.00015978,2]
[391295857,1760473834820,-413.45,0.00015978,2]
[391295858,1760473834829,-168.17,0.00015978,2]
[391295859,1760473834838,-150.0,0.00015978,2]
[391295860,1760473834847,-889.65936706,0.00016043,2]
[391295861,1760473834856,-6820.18685924,0.00016116,2]
[391295864,1760473840682,-250.0,0.00014414,7]
[391295865,1760473840691,-477.63438192,0.0001563,2]
[391295866,1760473840700,-477.63438187,0.00015849,2]
[391295867,1760473840709,-800.73123621,0.00016116,2]
[391295868,1760473840733,-600.38000002,0.00016116,2]
[391295869,1760473840743,-271.937552,0.00016116,2]
[391295870,1760473841339,-1000.0,0.00016116,2]
[391295871,1760473841350,-506.75435253,0.00016116,2]
[391295872,1760473841359,-150.99,0.00016116,2]
[391295873,1760473841370,-419.22,0.00016116,2]
[391295874,1760473841380,-150.99,0.00016116,2]
[391295875,1760473841389,-388.88,0.00016116,2]
[391295876,1760473841403,-1882.06564667,0.000162,5]
[391295961,1760473843243,-1000.0,0.00014998,2]
[391295963,1760473843299,-274.6462179,0.00014998,2]
[391295964,1760473843310,-3117.94349916,0.000162,5]
[391295965,1760473843321,-3779.07997274,0.0001623,2]
[391295966,1760473843334,-317.9444,0.0001623,2]
[391295967,1760473843344,-233.3191,0.0001623,2]
[391295968,1760473843353,-278.5493,0.0001623,2]
[391295969,1760473843363,-332.12577015,0.00016237,2]
[391295970,1760473843372,-358.999,0.0001625,2]
[391295971,1760473843382,-200.0,0.00016269,2]
[391295972,1760473843391,-3779.07997274,0.00016303,2]
[391295973,1760473843405,-500.0,0.00016329,2]
[391295974,1760473843415,-441.97323688,0.00016329,2]
[391295975,1760473843426,-500.0,0.00016329,2]
[391295976,1760473843436,-345.06825268,0.00016329,2]
[391295977,1760473843445,-586.31259969,0.00016329,2]
[391295978,1760473843455,-531.96874854,0.00016329,2]
[391295979,1760473843464,-155.5148162,0.0001633,2]
[391295981,1760473843474,-921.12874048,0.0001633,2]
[391295983,1760473843484,-278.93900212,0.0001633,2]
[391295985,1760473843494,-33106.1918,0.0001633,2]
[391295987,1760473843503,-53581.7796,0.0001633,2]
[391295989,1760473843513,-5000.0,0.0001633,2]
[391295991,1760473843522,-300.0,0.00016368,2]
[391295994,1760473843532,-3779.07997274,0.00016376,2]
[391295997,1760473843541,-1569.927,0.00016384,2]
[391296000,1760473843551,-358.99901,0.0001639,2]
[391296003,1760473843561,-1000.0,0.000164,2]
[391296006,1760473843571,-1000.0,0.000164,2]
[391296007,1760473843581,-1000.0,0.000164,2]
[391296008,1760473843591,-1015.0,0.000164,2]
[391296009,1760473843600,-1000.0,0.000164,2]
[391296011,1760473843609,-1000.0,0.000164,2]
[391296013,1760473843619,-1000.0,0.000164,2]
[391296015,1760473843629,-1000.0,0.000164,2]
[391296016,1760473843642,-1002.0,0.000164,2]
[391296017,1760473843656,-332.12577015,0.000164,2]
[391296018,1760473843666,-10733.0,0.00016411,2]
[391296019,1760473843676,-151.0,0.00016419,2]
[391296020,1760473843686,-159.64980734,0.00016419,2]
[391296021,1760473843696,-302.0,0.00016419,2]
[391296022,1760473843706,-151.0,0.00016419,2]
[391296023,1760473843716,-661.98422179,0.0001642,2]
[391296024,1760473843727,-661.98422179,0.0001642,2]
[391296025,1760473843737,-661.98422179,0.00016428,2]
[391296026,1760473843746,-155.0,0.00016429,2]
[391296027,1760473843756,-75124.36024631,0.0001643,3]
[391296028,1760473843838,-1553.895,0.0001643,3]
[391296031,1760473846094,-477.63438187,0.00016067,2]
[391296032,1760473846104,-161.01107697,0.00016429,2]
[391296033,1760473846113,-62791.96377798,0.0001643,3]
[391296034,1760473846124,-48733.06561704,0.0001643,3]
[391296035,1760473846135,-23998.39076318,0.0001643,3]
[391296591,1760473861979,500.0,0.00027397,120]
[391296592,1760473862258,200.0,0.0003032,120]
[391296593,1760473994142,800.0,0.00026986,120]
[391296594,1760473995748,500.0,0.00025859,120]
[391296595,1760473996169,500.0,0.00027093,120]
[391296596,1760474000451,2000.0,0.00025432,120]
[391296597,1760474000881,2000.0,0.00026239,120]
[391296598,1760474002539,2000.0,0.00027047,120]
[391296599,1760474010556,500.0,0.00026225,120]
[391296600,1760474014613,500.0,0.00026059,120]
[391296601,1760474104921,168.0,0.00026993,120]
[391296602,1760474163101,200.0,0.00030323,120]
[391296604,1760474268398,418.51,0.00030314,120]
[391296605,1760474343132,184.94,0.00030314,120]
[391296606,1760474410527,172.0,0.00024573,120]
[391296607,1760474411905,172.0,0.00025801,120]
[391296608,1760474413260,172.0,0.00027092,120]
[391296609,1760474460960,200.0,0.00030314,120]
[391296610,1760474595616,500.0,0.00026067,120]
[391296611,1760474599240,2000.0,0.000255,120]
[391296612,1760474599623,2000.0,0.00026374,120]
[391296613,1760474599998,2000.0,0.00027249,120]
[391296614,1760474606916,500.0,0.00026225,120]
[391296615,1760474611745,500.0,0.00026139,120]
[391296616,1760474711411,172.0,0.00024422,120]
[391296617,1760474712726,172.0,0.00025643,120]
[391296618,1760474713987,172.0,0.00026925,120]
[391296619,1760474761925,200.0,0.00030315,120]
[391296620,1760474772945,500.0,0.00027397,120]
[391296621,1760474859165,342.97,0.0002739,120]
[391296626,1760475032211,-250.0,0.00015358,2]
[391296627,1760475032220,-200.0,0.00015361,2]
[391296628,1760475032230,-1044.78554798,0.00015561,2]
[391296629,1760475032480,-64.45445202,0.00015561,2]
[391296630,1760475032489,-167.99,0.00015828,2]
[391296631,1760475032498,-157.86850189,0.0001589,2]
[391296635,1760475038287,-481.13149811,0.0001589,2]
[391296636,1760475038296,-871.12479691,0.00016096,2]
[391296637,1760475038309,-1873.0,0.000162,2]
[391296638,1760475038319,-358.99901,0.0001626,2]
[391296639,1760475038328,-358.999,0.0001626,2]
[391296640,1760475038338,-212.65,0.00016262,2]
[391296641,1760475038348,-799.0,0.00016295,2]
[391296642,1760475038357,-168.17,0.000163,2]
[391296643,1760475038366,-277.35679052,0.0001632,2]
[391296644,1760475038375,-1200.0,0.00016321,2]
[391296645,1760475038385,-204.28528275,0.00016322,2]
[391296646,1760475038395,-322.6107,0.00016322,2]
[391296647,1760475038404,-2000.0,0.00016322,2]
[391296648,1760475038413,-758.58959998,0.00016322,2]
[391296649,1760475038422,-2000.0,0.00016322,2]
[391296650,1760475038431,-250.0,0.00016322,2]
[391296651,1760475038440,-250.0,0.00016322,2]
[391296652,1760475038450,-250.0,0.00016322,2]
[391296653,1760475038460,-250.0,0.00016322,2]
[391296654,1760475038469,-250.0,0.00016322,2]
[391296655,1760475038478,-250.0,0.00016322,2]
[391296656,1760475038488,-250.0,0.00016322,2]
[391296657,1760475038498,-250.0,0.00016322,2]
[391296658,1760475038507,-250.0,0.00016322,2]
[391296659,1760475038516,-250.0,0.00016322,2]
[391296660,1760475038526,-250.0,0.00016322,2]
[391296661,1760475038535,-1000.0,0.00016322,2]
[391296662,1760475038544,-2000.0,0.00016322,2]
[391296663,1760475038553,-1000.0,0.00016322,2]
[391296664,1760475038563,-2000.0,0.00016322,2]
[391296665,1760475038572,-2000.0,0.00016322,2]
[391296667,1760475038581,-405.80185851,0.00016322,2]
[391296669,1760475038591,-2000.0,0.00016322,2]
[391296671,1760475038600,-900.27197426,0.00016322,2]
[391296673,1760475038609,-2000.0,0.00016322,2]
[391296675,1760475038620,-2000.0,0.00016322,2]
[391296677,1760475038630,-2000.0,0.00016322,2]
[391296679,1760475038639,-488.9800685,0.00016322,2]
[391296681,1760475038649,-986.60257852,0.00016328,2]
[391296683,1760475038658,-550.0,0.00016329,2]
[391296685,1760475038671,-454.1048655,0.0001633,2]
[391296687,1760475038682,-420.31413472,0.0001633,2]
[391296689,1760475038691,-265.70061612,0.0001633,2]
[391296691,1760475038701,-789.53892042,0.0001633,2]
[391296692,1760475038711,-279.4736,0.0001633,2]
[391296693,1760475038720,-5000.0,0.0001633,2]
[391296694,1760475038730,-1258.53387255,0.00016334,2]
[391296695,1760475038742,-1258.53387255,0.00016335,2]
[391296697,1760475038751,-1258.53387255,0.00016336,2]
[391296698,1760475038760,-1258.53387255,0.00016337,2]
[391296699,1760475038769,-1258.53387255,0.00016338,2]
[391296700,1760475038779,-741.65863168,0.00016338,2]
[391296701,1760475038788,-2475.36777708,0.00016338,2]
[391296702,1760475038798,-181.61025184,0.00016338,2]
[391296703,1760475038807,-316.78699492,0.00016338,2]
[391296704,1760475038816,-799.0,0.00016357,2]
[391296705,1760475038826,-799.0,0.00016357,2]
[391296706,1760475038835,-33.76754975,0.00016385,2]
[391296710,1760475040488,-116.23245025,0.00016385,2]
[391296711,1760475040498,-150.0,0.00016385,2]
[391296712,1760475040507,-150.0,0.00016385,2]
[391296713,1760475040516,-150.0,0.00016385,2]
[391296714,1760475040526,-150.0,0.00016385,2]
[391296715,1760475040535,-420.33307737,0.00016385,2]
[391296716,1760475040558,-2341.66692263,0.00016385,2]
[391296717,1760475040567,-907.23307737,0.00016395,2]
[391296718,1760475040578,-1321.71702053,0.00016395,2]
[391296719,1760475040587,-19665.8404488,0.00016395,2]
[391296720,1760475040596,-488.93651898,0.00016395,2]
[391296747,1760475046394,-354.213,0.00016395,2]
[391296748,1760475046451,-2711.44233532,0.00016395,2]
[391296749,1760475046460,-2938.55766468,0.00016395,2]
[391296750,1760475046505,-325.94196856,0.00016395,2]
[391296751,1760475046520,-1407.91741944,0.00016395,2]
[391296752,1760475061266,200.0,0.00030315,120]
[391296753,1760475197108,500.0,0.00024745,120]
[391296754,1760475197403,500.0,0.00027093,120]
[391296755,1760475203654,500.0,0.00027128,120]
[391296756,1760475250402,3000.0,0.00030315,120]
[391296757,1760475316561,2698.0,0.00030315,60]
[391296758,1760475321550,2698.0,0.00030315,62]
[391296774,1760475360621,2789.0,0.00030315,64]
[391296775,1760475362090,200.0,0.00030315,120]
[391296776,1760475661778,200.0,0.00030315,120]
[391296777,1760475690580,500.0,0.00027397,120]
[391296778,1760475703656,2697.0,0.00030315,66]
[391296780,1760475794693,500.0,0.00024745,120]
[391296781,1760475795656,461.249936,0.00027093,120]
[391296782,1760475798672,2000.0,0.00025232,120]
[391296783,1760475799127,2000.0,0.0002665,120]
[391296784,1760475805355,500.0,0.00024745,120]
[391296785,1760475805769,374.392494,0.00027093,120]
[391296786,1760475809552,500.0,0.0002494,120]
[391296787,1760475809910,500.0,0.00027396,120]
[391296788,1760475949362,157.81,7.515e-05,2]
[391296789,1760475949787,157.81,7.957e-05,2]
[391296790,1760475950014,157.81,8.4e-05,2]
[391296791,1760475950210,157.81,8.842e-05,2]
[391296792,1760475950414,157.81,9.284e-05,2]
[391296793,1760475950618,157.81,9.726e-05,2]
[391296794,1760475951115,157.81,0.00010168,2]
[391296795,1760475951212,157.81,0.0001061,2]
[391296796,1760475951482,157.81,0.00011052,2]
[391296797,1760475951705,157.81,0.00011494,2]
[391296798,1760475952144,157.81,0.00011936,2]
[391296799,1760475952358,157.81,0.00012378,2]
[391296800,1760475962136,200.0,0.00030315,120]
[391296811,1760476231517,-157.81,0.0001282,2]
[391296812,1760476231527,-157.81,0.00013262,2]
[391296813,1760476231536,-157.81,0.00013705,2]
[391296814,1760476231545,-756.92456567,0.00014102,2]
[391296815,1760476231591,-112.16792359,0.00014102,2]
[391296816,1760476231600,-157.81,0.00014147,2]
[391296817,1760476231609,-2.74279627,0.0001452,2]
[391296818,1760476231635,-163.91720373,0.0001452,2]
[391296819,1760476231645,-157.81,0.00014589,2]
[391296820,1760476231655,-166.66,0.00014826,2]
[391296821,1760476231664,-157.81,0.00015031,2]
[391296822,1760476231674,-474.58,0.00015069,2]
[391296823,1760476231684,-474.58,0.00015069,2]
[391296824,1760476231693,-474.58,0.00015069,2]
[391296825,1760476231703,-166.66,0.00015131,2]
[391296826,1760476231712,-666.0,0.00015284,3]
[391296827,1760476231722,-200.0,0.0001531,2]
[391296828,1760476231732,-161.61067274,0.00015311,2]
[391296829,1760476231780,-294.46137287,0.00015311,2]
[391296838,1760476237504,-451.85301947,0.00015311,2]
[391296839,1760476237516,-382.74493492,0.00015311,2]
[391296840,1760476237526,-200.0,0.00015314,2]
[391296841,1760476237535,-20.48448235,0.00015322,2]
[391296842,1760476237588,-279.51551765,0.00015322,2]
[391296843,1760476237598,-64.45448235,0.00015322,2]
[391296844,1760476237609,-271.54551765,0.00015322,2]
[391296845,1760476237619,-6392.15,0.00015323,2]
[391296846,1760476237629,-159.05,0.00015361,2]
[391296847,1760476237639,-150.0,0.00015362,2]
[391296848,1760476237648,-3301.05,0.00015383,2]
[391296849,1760476237658,-277.35679052,0.00015393,2]
[391296850,1760476237668,-2000.0,0.00015393,2]
[391296852,1760476237677,-2000.0,0.00015393,2]
[391296854,1760476237687,-2000.0,0.00015393,2]
[391296856,1760476237697,-2000.0,0.00015393,2]
[391296858,1760476237707,-2000.0,0.00015393,2]
[391296860,1760476237716,-1343.50209557,0.00015393,2]
[391296862,1760476237728,-656.49790443,0.00015393,2]
[391296864,1760476237738,-500.0,0.00015393,2]
[391296866,1760476237748,-2000.0,0.00015393,2]
[391296868,1760476237758,-2000.0,0.00015393,2]
[391296870,1760476237767,-500.0,0.00015393,2]
[391296872,1760476237781,-2000.0,0.00015393,2]
[391296875,1760476237791,-250.0,0.00015393,2]
[391296877,1760476237800,-500.0,0.00015393,2]
[391296878,1760476237809,-2000.0,0.00015393,2]
[391296880,1760476237819,-250.0,0.00015393,2]
[391296882,1760476237828,-500.0,0.00015393,2]
[391296884,1760476237837,-2000.0,0.00015393,2]
[391296886,1760476237846,-250.0,0.00015393,2]
[391296889,1760476237858,-500.0,0.00015393,2]
[391296891,1760476237867,-2000.0,0.00015393,2]
[391296893,1760476237877,-250.0,0.00015393,2]
[391296894,1760476237886,-500.0,0.00015393,2]
[391296896,1760476237896,-2000.0,0.00015393,2]
[391296898,1760476237905,-250.0,0.00015393,2]
[391296900,1760476237915,-500.0,0.00015393,2]
[391296902,1760476237924,-593.50209557,0.00015393,2]
[391296905,1760476237937,-1125.59034867,0.00015393,2]
[391297016,1760476239407,-280.90755576,0.00015393,2]
[391297017,1760476239416,-159.45487857,0.00015393,2]
[391297018,1760476239428,-90.54512143,0.00015393,2]
[391297019,1760476239437,-500.0,0.00015393,2]
[391297020,1760476239447,-2000.0,0.00015393,2]
[391297021,1760476239456,-250.0,0.00015393,2]
[391297022,1760476239466,-248.0,0.00015393,2]
[391297023,1760476239475,-1058.90814029,0.00015393,2]
[391297024,1760476239505,-524.9326699,0.00015393,2]
[391297025,1760476239707,-250.29304959,0.00015393,2]
[391297029,1760476242639,-165.86614022,0.00015393,2]
[391297030,1760476242648,-95.08385978,0.00015393,2]
[391297031,1760476242694,-154.91614022,0.00015393,2]
[391297032,1760476242703,-250.0,0.00015393,2]
[391297033,1760476242713,-250.0,0.00015393,2]
[391297034,1760476242722,-250.0,0.00015393,2]
[391297035,1760476242731,-322.6107,0.00015393,2]
[391297036,1760476242741,-300.0,0.000154,5]
[391297038,1760476242751,-166.66,0.00015437,2]
[391297039,1760476242760,-474.58,0.00015441,2]
[391297040,1760476242770,-164.73,0.000155,2]
[391297041,1760476242779,-17.21624084,0.000155,5]
[391297043,1760476245504,-582.78375916,0.000155,5]
[391297044,1760476245514,-168.17,0.00015578,2]
[391297045,1760476245523,-1092.64,0.00015578,2]
[391297046,1760476245532,-336.34,0.00015578,2]
[391297047,1760476245541,-104.28176664,0.00015578,2]
[391297057,1760476261604,200.0,0.00030315,120]
[391297058,1760476327336,2074.40734342,0.00030315,120]
[391297059,1760476349612,3422.77437226,0.00027397,120]
[391297060,1760476403721,500.0,0.00025479,120]
[391297061,1760476404074,500.0,0.00027396,120]
[391297074,1760476539672,-900.0,0.000156,5]
[391297075,1760476539714,-1200.0,0.000157,5]
[391297076,1760476539756,-1500.0,0.000158,5]
[391297077,1760476539799,-300.0,0.000159,5]
[391297078,1760476559000,-449.75,0.00013699,2]
[391297079,1760476559026,-1600.0,0.00015311,2]
[391297080,1760476559050,-167.1122217,0.000155,2]
[391297081,1760476559077,-45.71823336,0.00015578,2]
[391297082,1760476559101,-166.66,0.00015743,2]
[391297083,1760476559125,-166.66,0.00016048,2]
[391297084,1760476559151,-889.65936706,0.00016085,2]
[391297085,1760476559173,-170.12,0.00016145,2]
[391297087,1760476561564,200.0,0.00030315,120]
[391297088,1760476609308,-239.13055458,0.00016258,2]
[391297089,1760476609333,-298.52148873,0.00016259,2]
[391297090,1760476609359,-300.0,0.00016273,2]
[391297091,1760476609383,-277.35679052,0.00016285,2]
[391297092,1760476609407,-395.0,0.00016294,2]
[391297093,1760476609431,-200.0,0.00016297,2]
[391297094,1760476609454,-200.0,0.00016298,2]
[391297095,1760476609478,-200.0,0.00016298,2]
[391297096,1760476609503,-629.26693628,0.00016298,2]
[391297097,1760476609527,-629.26693628,0.00016306,2]
[391297098,1760476609552,-629.26693628,0.00016314,2]
[391297099,1760476609578,-151.0,0.0001632,2]
[391297100,1760476609603,-151.0,0.0001632,2]
[391297101,1760476609627,-151.0,0.0001632,2]
[391297102,1760476609653,-151.0,0.0001632,2]
[391297103,1760476609678,-151.0,0.0001632,2]
[391297104,1760476609703,-151.0,0.0001632,2]
[391297105,1760476609728,-151.0,0.0001632,2]
[391297106,1760476609753,-151.0,0.0001632,2]
[391297107,1760476609778,-151.0,0.0001632,2]
[391297108,1760476609802,-151.0,0.0001632,2]
[391297109,1760476609828,-151.0,0.0001632,2]
[391297110,1760476609851,-250.0,0.0001632,2]
[391297111,1760476609876,-151.0,0.0001632,2]
[391297112,1760476609900,-250.0,0.0001632,2]
[391297113,1760476609925,-151.0,0.0001632,2]
[391297114,1760476609949,-250.0,0.0001632,2]
[391297115,1760476609976,-151.0,0.0001632,2]
[391297116,1760476610000,-227.74,0.0001632,2]
[391297117,1760476610030,-250.0,0.0001632,2]
[391297118,1760476610055,-250.0,0.0001632,2]